[Event "*** Titled Tuesday Blitz"]
[Site "Chess.com"]
[Date "2020.12.29"]
[Round "6"]
[White "AttilaTurzo"]
[Black "Chesswizard_2007"]
[Result "0-1"]
[WhiteElo "2489"]
[BlackElo "2667"]
[TimeControl "180+1"]
[EndTime "11:06:33 PST"]
[Termination "Chesswizard_2007 won by checkmate"]

1. d4 {[%clk 0:03:00.9]} 1... Nf6 {[%clk 0:02:53.8]} 2. Nf3 {[%clk 0:02:59.5]}
2... d5 {[%clk 0:02:50.9]} 3. Bf4 {[%clk 0:02:58.9]} 3... e6 {[%clk 0:02:48.8]}
4. e3 {[%clk 0:02:58.8]} 4... Bd6 {[%clk 0:02:47.5]} 5. Bg3 {[%clk 0:02:58.6]}
5... O-O {[%clk 0:02:46.9]} 6. Nbd2 {[%clk 0:02:57.5]} 6... b6 {[%clk
0:02:46.8]} 7. c3 {[%clk 0:02:56.4]} 7... Bb7 {[%clk 0:02:46.8]} 8. Bd3 {[%clk
0:02:56.3]} 8... c5 {[%clk 0:02:46.6]} 9. Qe2 {[%clk 0:02:56.7]} 9... Nc6 {[%clk
0:02:45.8]} 10. Rd1 {[%clk 0:02:56.8]} 10... h6 {[%clk 0:02:41.9]} 11. e4 {[%clk
0:02:55.6]} 11... Be7 {[%clk 0:02:42.5]} 12. e5 {[%clk 0:02:18.5]} 12... Nh5
{[%clk 0:02:40.9]} 13. O-O {[%clk 0:02:16]} 13... Nxg3 {[%clk 0:02:39.9]} 14.
hxg3 {[%clk 0:02:12.7]} 14... cxd4 {[%clk 0:02:39.3]} 15. Nxd4 {[%clk
0:02:07.5]} 15... Rc8 {[%clk 0:02:29.9]} 16. Nxc6 {[%clk 0:02:01.5]} 16... Bxc6
{[%clk 0:02:28.6]} 17. Nf3 {[%clk 0:02:00.5]} 17... a5 {[%clk 0:02:22]} 18. Nd4
{[%clk 0:01:59.5]} 18... Ba4 {[%clk 0:02:15.1]} 19. Rde1 {[%clk 0:01:52.1]}
19... Bc5 {[%clk 0:02:08.1]} 20. f4 {[%clk 0:01:46.9]} 20... g6 {[%clk
0:01:57.5]} 21. g4 {[%clk 0:01:42.8]} 21... Qh4 {[%clk 0:01:55.3]} 22. Qf3
{[%clk 0:01:33]} 22... Bd7 {[%clk 0:01:39.5]} 23. g3 {[%clk 0:01:31.7]} 23...
Qe7 {[%clk 0:01:31.1]} 24. Kg2 {[%clk 0:01:19.3]} 24... Bxd4 {[%clk 0:01:10]}
25. cxd4 {[%clk 0:01:18.9]} 25... Qb4 {[%clk 0:01:10.9]} 26. Qf2 {[%clk
0:01:11.7]} 26... Bb5 {[%clk 0:01:09.3]} 27. Bxb5 {[%clk 0:01:05.5]} 27... Qxb5
{[%clk 0:01:10.2]} 28. f5 {[%clk 0:01:04.8]} 28... Qd3 {[%clk 0:01:02.2]} 29.
Re2 {[%clk 0:00:57.4]} 29... b5 {[%clk 0:00:40.5]} 30. Rh1 {[%clk 0:00:41.9]}
30... Rc4 {[%clk 0:00:31.3]} 31. Rd2 {[%clk 0:00:21.7]} 31... Qe4+ {[%clk
0:00:29.6]} 32. Qf3 {[%clk 0:00:22.1]} 32... Rxd4 {[%clk 0:00:26.1]} 33. Rxd4
{[%clk 0:00:20.6]} 33... Qxd4 {[%clk 0:00:27]} 34. f6 {[%clk 0:00:18]} 34...
Qxb2+ {[%clk 0:00:24.4]} 35. Kh3 {[%clk 0:00:17.7]} 35... Qxe5 {[%clk
0:00:23.9]} 36. Rc1 {[%clk 0:00:16.5]} 36... b4 {[%clk 0:00:20.5]} 37. Rc2
{[%clk 0:00:15.1]} 37... a4 {[%clk 0:00:16.1]} 38. Re2 {[%clk 0:00:15.3]} 38...
Qc3 {[%clk 0:00:13.8]} 39. Qf4 {[%clk 0:00:15]} 39... a3 {[%clk 0:00:09.6]} 40.
Qxh6 {[%clk 0:00:12.3]} 40... Qxf6 {[%clk 0:00:09.1]} 41. Qe3 {[%clk 0:00:12]}
41... Kg7 {[%clk 0:00:07.8]} 42. g5 {[%clk 0:00:12]} 42... Rh8+ {[%clk
0:00:08.2]} 43. Kg2 {[%clk 0:00:11.5]} 43... Qc3 {[%clk 0:00:08.9]} 44. Qf3
{[%clk 0:00:10.5]} 44... Qxf3+ {[%clk 0:00:08.5]} 45. Kxf3 {[%clk 0:00:11.4]}
45... b3 {[%clk 0:00:08.9]} 46. axb3 {[%clk 0:00:11.1]} 46... Rb8 {[%clk
0:00:09.6]} 47. Ra2 {[%clk 0:00:11.7]} 47... Rxb3+ {[%clk 0:00:09.9]} 48. Kf4
{[%clk 0:00:11.5]} 48... f6 {[%clk 0:00:08.8]} 49. g4 {[%clk 0:00:10.1]} 49...
e5# {[%clk 0:00:07.9]} 0-1

[Event "*** Titled Tuesday Blitz"]
[Site "Chess.com"]
[Date "2020.12.29"]
[Round "6"]
[White "sergiochess83"]
[Black "Alexander_Zubov"]
[Result "1-0"]
[WhiteElo "2809"]
[BlackElo "2928"]
[TimeControl "180+1"]
[EndTime "11:06:34 PST"]
[Termination "sergiochess83 won on time"]

1. e4 {[%clk 0:03:00.9]} 1... c5 {[%clk 0:02:57.5]} 2. Nf3 {[%clk 0:02:59.4]}
2... e6 {[%clk 0:02:57.7]} 3. d4 {[%clk 0:02:59.3]} 3... cxd4 {[%clk 0:02:58.2]}
4. Nxd4 {[%clk 0:03:00.2]} 4... a6 {[%clk 0:02:58.5]} 5. Bd3 {[%clk 0:02:59.5]}
5... Bc5 {[%clk 0:02:56.5]} 6. Nb3 {[%clk 0:02:59.2]} 6... Be7 {[%clk
0:02:56.2]} 7. Qg4 {[%clk 0:02:58.6]} 7... g6 {[%clk 0:02:56]} 8. Qg3 {[%clk
0:02:58.9]} 8... d6 {[%clk 0:02:55.3]} 9. Nc3 {[%clk 0:02:57.8]} 9... Nc6 {[%clk
0:02:55]} 10. Bd2 {[%clk 0:02:53]} 10... Ne5 {[%clk 0:02:51.9]} 11. O-O-O {[%clk
0:02:48.5]} 11... b5 {[%clk 0:02:49.9]} 12. f4 {[%clk 0:02:47]} 12... Nxd3+
{[%clk 0:02:45.4]} 13. Qxd3 {[%clk 0:02:46.7]} 13... Nf6 {[%clk 0:02:39.3]} 14.
a3 {[%clk 0:02:36]} 14... Bb7 {[%clk 0:02:34.2]} 15. Rhf1 {[%clk 0:02:31.8]}
15... Rc8 {[%clk 0:02:33]} 16. Kb1 {[%clk 0:02:28.8]} 16... Rc4 {[%clk
0:02:23.8]} 17. e5 {[%clk 0:01:56]} 17... Nd5 {[%clk 0:01:36.8]} 18. exd6 {[%clk
0:01:33.4]} 18... Bxd6 {[%clk 0:01:27.9]} 19. Na5 {[%clk 0:01:22.2]} 19... Qxa5
{[%clk 0:01:05.2]} 20. Nxd5 {[%clk 0:01:21.7]} 20... Qd8 {[%clk 0:01:03.5]} 21.
Ba5 {[%clk 0:00:56.3]} 21... Qxa5 {[%clk 0:00:44.6]} 22. Nf6+ {[%clk 0:00:56.1]}
22... Ke7 {[%clk 0:00:45]} 23. Qxd6+ {[%clk 0:00:56.5]} 23... Kxf6 {[%clk
0:00:45.3]} 24. Qe5+ {[%clk 0:00:56.3]} 24... Ke7 {[%clk 0:00:45.9]} 25. Qxh8
{[%clk 0:00:56.5]} 25... Bxg2 {[%clk 0:00:44]} 26. Rf2 {[%clk 0:00:52.6]} 26...
Be4 {[%clk 0:00:41.1]} 27. Rfd2 {[%clk 0:00:50.6]} 27... Qc7 {[%clk 0:00:35.2]}
28. Rc1 {[%clk 0:00:19.4]} 28... h5 {[%clk 0:00:30.8]} 29. h4 {[%clk 0:00:18.8]}
29... Bf5 {[%clk 0:00:29]} 30. Qa8 {[%clk 0:00:12]} 30... a5 {[%clk 0:00:25.1]}
31. Qa6 {[%clk 0:00:10.6]} 31... b4 {[%clk 0:00:24.1]} 32. axb4 {[%clk
0:00:10.3]} 32... axb4 {[%clk 0:00:22.5]} 33. b3 {[%clk 0:00:10.5]} 33... Rc3
{[%clk 0:00:16.2]} 34. Kb2 {[%clk 0:00:10.8]} 34... Qxf4 {[%clk 0:00:13.4]} 35.
Qb7+ {[%clk 0:00:10.9]} 35... Kf6 {[%clk 0:00:13.5]} 36. Rd7 {[%clk 0:00:09.3]}
36... Qe3 {[%clk 0:00:02.9]} 37. Rxf7+ {[%clk 0:00:08.8]} 37... Ke5 {[%clk
0:00:03.5]} 38. Qxb4 {[%clk 0:00:07.4]} 38... Rc6 {[%clk 0:00:01.9]} 39. Re1
{[%clk 0:00:06.5]} 39... Rxc2+ {[%clk 0:00:01.6]} 40. Ka3 {[%clk 0:00:06.8]}
40... Re2 {[%clk 0:00:02.5]} 41. Qb5+ {[%clk 0:00:07]} 41... Kf4 {[%clk
0:00:02.4]} 42. Rxe2 {[%clk 0:00:04.2]} 42... Qc1+ {[%clk 0:00:02.1]} 43. Kb4
{[%clk 0:00:04.4]} 1-0

[Event "*** Titled Tuesday Blitz"]
[Site "Chess.com"]
[Date "2020.12.29"]
[Round "6"]
[White "The_filthy"]
[Black "KononenkoD"]
[Result "0-1"]
[WhiteElo "2295"]
[BlackElo "2456"]
[TimeControl "180+1"]
[EndTime "11:06:35 PST"]
[Termination "KononenkoD won by resignation"]

1. e4 {[%clk 0:03:00.9]} 1... c6 {[%clk 0:02:59.8]} 2. Nf3 {[%clk 0:02:58.2]}
2... d5 {[%clk 0:03:00.7]} 3. Nc3 {[%clk 0:02:58.5]} 3... Bg4 {[%clk 0:02:59.8]}
4. h3 {[%clk 0:02:58.9]} 4... Bxf3 {[%clk 0:03:00.3]} 5. Qxf3 {[%clk 0:02:59.1]}
5... e6 {[%clk 0:03:01]} 6. d4 {[%clk 0:02:56.3]} 6... Nf6 {[%clk 0:02:56]} 7.
e5 {[%clk 0:02:56.2]} 7... Nfd7 {[%clk 0:02:55.4]} 8. Bf4 {[%clk 0:02:43.2]}
8... c5 {[%clk 0:02:55.6]} 9. dxc5 {[%clk 0:02:43.1]} 9... Nc6 {[%clk
0:02:51.1]} 10. Qg3 {[%clk 0:02:38]} 10... Qa5 {[%clk 0:02:44.8]} 11. O-O-O
{[%clk 0:02:04.1]} 11... Nxc5 {[%clk 0:02:37.7]} 12. Kb1 {[%clk 0:01:54.2]}
12... a6 {[%clk 0:02:36.3]} 13. Bd3 {[%clk 0:01:47.3]} 13... Nb4 {[%clk
0:02:28.5]} 14. a3 {[%clk 0:01:40.5]} 14... Nc6 {[%clk 0:02:10.6]} 15. Na2
{[%clk 0:01:24.5]} 15... Na4 {[%clk 0:02:07.1]} 16. Ka1 {[%clk 0:01:08.9]} 16...
Nxb2 {[%clk 0:01:52.7]} 17. Kxb2 {[%clk 0:01:08]} 17... Bxa3+ {[%clk 0:01:49.6]}
18. Ka1 {[%clk 0:01:08.2]} 18... Nb4 {[%clk 0:01:48.8]} 19. Bd2 {[%clk
0:00:59.2]} 19... Bb2+ {[%clk 0:01:21.7]} 20. Kxb2 {[%clk 0:00:53]} 20... Qxa2+
{[%clk 0:01:21.9]} 21. Kc3 {[%clk 0:00:51.8]} 21... Rc8+ {[%clk 0:00:53.6]} 22.
Kd4 {[%clk 0:00:51.8]} 22... Nxc2+ {[%clk 0:00:48]} 23. Bxc2 {[%clk 0:00:48.7]}
23... Rxc2 {[%clk 0:00:40.7]} 24. Ke3 {[%clk 0:00:40.9]} 24... Qc4 {[%clk
0:00:33.4]} 25. Qf4 {[%clk 0:00:41]} 25... Qb3+ {[%clk 0:00:28.7]} 26. Ke2
{[%clk 0:00:38.1]} 26... O-O {[%clk 0:00:28.5]} 27. Qe3 {[%clk 0:00:24.8]} 27...
Qa4 {[%clk 0:00:20.5]} 28. Rc1 {[%clk 0:00:21.2]} 28... Rfc8 {[%clk 0:00:19.5]}
29. Rxc2 {[%clk 0:00:21]} 29... Rxc2 {[%clk 0:00:19.9]} 30. Rd1 {[%clk
0:00:12.9]} 30... h6 {[%clk 0:00:19.1]} 31. Qd3 {[%clk 0:00:12.1]} 31... Rc4
{[%clk 0:00:15.3]} 32. Rc1 {[%clk 0:00:10.3]} 32... Rxc1 {[%clk 0:00:14.2]} 33.
Bxc1 {[%clk 0:00:10.4]} 33... b5 {[%clk 0:00:13.8]} 34. Bd2 {[%clk 0:00:09.4]}
34... b4 {[%clk 0:00:12.6]} 35. Qd4 {[%clk 0:00:08.6]} 35... a5 {[%clk
0:00:11.6]} 36. Qc5 {[%clk 0:00:06.4]} 36... Qa1 {[%clk 0:00:10.2]} 37. Qc8+
{[%clk 0:00:06.2]} 37... Kh7 {[%clk 0:00:09.8]} 38. Qc7 {[%clk 0:00:07.1]} 38...
Kg6 {[%clk 0:00:08.7]} 39. g4 {[%clk 0:00:06.8]} 39... b3 {[%clk 0:00:07.9]} 40.
h4 {[%clk 0:00:07.2]} 40... b2 {[%clk 0:00:05.2]} 41. h5+ {[%clk 0:00:07.7]}
41... Kh7 {[%clk 0:00:04.9]} 42. Bc3 {[%clk 0:00:07.3]} 42... b1=Q {[%clk
0:00:04.5]} 43. Bxa1 {[%clk 0:00:07.2]} 43... Qxa1 {[%clk 0:00:05.4]} 44. Qxf7
{[%clk 0:00:07.4]} 44... Qxe5+ {[%clk 0:00:05.9]} 45. Kd3 {[%clk 0:00:05.8]}
45... Qe4+ {[%clk 0:00:05.9]} 46. Kd2 {[%clk 0:00:06.3]} 46... Qxg4 {[%clk
0:00:05.8]} 0-1

[Event "*** Titled Tuesday Blitz"]
[Site "Chess.com"]
[Date "2020.12.29"]
[Round "6"]
[White "Borsuk_Konstantin"]
[Black "Sviridov_Valery"]
[Result "1-0"]
[WhiteElo "2663"]
[BlackElo "2835"]
[TimeControl "180+1"]
[EndTime "11:06:36 PST"]
[Termination "Borsuk_Konstantin won on time"]

1. d4 {[%clk 0:03:00.9]} 1... g6 {[%clk 0:02:53.7]} 2. c4 {[%clk 0:03:00.9]}
2... Bg7 {[%clk 0:02:53.8]} 3. Nc3 {[%clk 0:03:01.6]} 3... d6 {[%clk 0:02:54.3]}
4. e4 {[%clk 0:03:01.2]} 4... e5 {[%clk 0:02:54.8]} 5. d5 {[%clk 0:03:01]} 5...
f5 {[%clk 0:02:53.7]} 6. exf5 {[%clk 0:03:01.1]} 6... gxf5 {[%clk 0:02:54.6]} 7.
Qh5+ {[%clk 0:03:00.9]} 7... Kf8 {[%clk 0:02:54.6]} 8. f4 {[%clk 0:03:01.1]}
8... Nf6 {[%clk 0:02:54.1]} 9. Qd1 {[%clk 0:03:01.1]} 9... e4 {[%clk 0:02:53.3]}
10. Be2 {[%clk 0:02:57.2]} 10... Na6 {[%clk 0:02:51.9]} 11. Nh3 {[%clk
0:02:55.1]} 11... Nc5 {[%clk 0:02:50]} 12. Nf2 {[%clk 0:02:50.8]} 12... a5
{[%clk 0:02:49.2]} 13. Be3 {[%clk 0:02:49.1]} 13... Qe7 {[%clk 0:02:49.3]} 14.
Qd2 {[%clk 0:02:44.7]} 14... Bd7 {[%clk 0:02:44.9]} 15. g3 {[%clk 0:02:41.6]}
15... h5 {[%clk 0:02:40.4]} 16. h3 {[%clk 0:02:41.3]} 16... a4 {[%clk
0:02:33.7]} 17. Kd1 {[%clk 0:02:32]} 17... Kf7 {[%clk 0:02:32.7]} 18. Kc2 {[%clk
0:02:32.3]} 18... Rae8 {[%clk 0:02:30.8]} 19. Rae1 {[%clk 0:02:21.4]} 19... c6
{[%clk 0:02:19.5]} 20. Kb1 {[%clk 0:02:12.9]} 20... cxd5 {[%clk 0:02:17.7]} 21.
cxd5 {[%clk 0:02:11.3]} 21... Rc8 {[%clk 0:02:13.5]} 22. Rhg1 {[%clk 0:02:07.7]}
22... a3 {[%clk 0:02:09.5]} 23. g4 {[%clk 0:01:56.2]} 23... hxg4 {[%clk
0:02:06.8]} 24. hxg4 {[%clk 0:01:55.9]} 24... axb2 {[%clk 0:02:07]} 25. gxf5
{[%clk 0:01:48.1]} 25... Bxf5 {[%clk 0:02:02]} 26. Rg5 {[%clk 0:01:45.5]} 26...
Bh7 {[%clk 0:01:30.5]} 27. Reg1 {[%clk 0:01:41.2]} 27... Rhg8 {[%clk 0:01:30]}
28. Nh3 {[%clk 0:01:27.8]} 28... Nd3 {[%clk 0:01:23.6]} 29. R5g3 {[%clk
0:01:18.9]} 29... Kf8 {[%clk 0:01:20.5]} 30. Rxg7 {[%clk 0:01:14.3]} 30... Rxg7
{[%clk 0:01:19.7]} 31. Ng5 {[%clk 0:01:14.9]} 31... Bf5 {[%clk 0:01:19]} 32.
Bxd3 {[%clk 0:01:06.8]} 32... exd3 {[%clk 0:01:17.5]} 33. Bd4 {[%clk 0:01:06.9]}
33... Rg6 {[%clk 0:01:09.6]} 34. Qh2 {[%clk 0:00:49.2]} 34... Ke8 {[%clk
0:00:42.7]} 35. Kxb2 {[%clk 0:00:45.3]} 35... Kd7 {[%clk 0:00:41.5]} 36. Qd2
{[%clk 0:00:35.9]} 36... Ne4 {[%clk 0:00:13.7]} 37. Ngxe4 {[%clk 0:00:29.6]}
37... Bxe4 {[%clk 0:00:06.4]} 38. Rg5 {[%clk 0:00:14.7]} 38... Rxg5 {[%clk
0:00:06.2]} 39. fxg5 {[%clk 0:00:15.6]} 39... b5 {[%clk 0:00:06.4]} 40. Qf4
{[%clk 0:00:14.6]} 40... Bg6 {[%clk 0:00:03.6]} 41. Bf6 {[%clk 0:00:14.6]} 41...
Qe8 {[%clk 0:00:02.2]} 42. Qb4 {[%clk 0:00:14.2]} 42... Kc7 {[%clk 0:00:02.1]}
43. Qa5+ {[%clk 0:00:14.3]} 43... Kb7 {[%clk 0:00:02.3]} 44. Nxb5 {[%clk
0:00:13.6]} 44... Rc2+ {[%clk 0:00:03.2]} 45. Kb3 {[%clk 0:00:13.7]} 45... Rc5
{[%clk 0:00:01.2]} 46. Nxd6+ {[%clk 0:00:12.8]} 1-0

[Event "*** Titled Tuesday Blitz"]
[Site "Chess.com"]
[Date "2020.12.29"]
[Round "6"]
[White "SARGISMV"]
[Black "ChronicUnhappiness"]
[Result "1-0"]
[WhiteElo "2468"]
[BlackElo "2329"]
[TimeControl "180+1"]
[EndTime "11:06:36 PST"]
[Termination "SARGISMV won on time"]

1. Nf3 {[%clk 0:02:50.7]} 1... Nf6 {[%clk 0:02:56.7]} 2. c4 {[%clk 0:02:50.2]}
2... c5 {[%clk 0:02:56.5]} 3. Nc3 {[%clk 0:02:50.2]} 3... e6 {[%clk 0:02:56]} 4.
g3 {[%clk 0:02:49.7]} 4... b6 {[%clk 0:02:55.4]} 5. Bg2 {[%clk 0:02:49.8]} 5...
Bb7 {[%clk 0:02:55.7]} 6. O-O {[%clk 0:02:50.7]} 6... Be7 {[%clk 0:02:55.9]} 7.
Re1 {[%clk 0:02:51.1]} 7... Ne4 {[%clk 0:02:55.6]} 8. Nxe4 {[%clk 0:02:49.8]}
8... Bxe4 {[%clk 0:02:54.9]} 9. d3 {[%clk 0:02:50.7]} 9... Bb7 {[%clk
0:02:52.8]} 10. e4 {[%clk 0:02:51]} 10... O-O {[%clk 0:02:50.3]} 11. d4 {[%clk
0:02:50.1]} 11... cxd4 {[%clk 0:02:49.8]} 12. Nxd4 {[%clk 0:02:51]} 12... Nc6
{[%clk 0:02:47.6]} 13. Be3 {[%clk 0:02:50.1]} 13... Nxd4 {[%clk 0:02:46.8]} 14.
Bxd4 {[%clk 0:02:49.4]} 14... Bc5 {[%clk 0:02:45.9]} 15. Bxc5 {[%clk 0:02:25.4]}
15... bxc5 {[%clk 0:02:45.5]} 16. Qd6 {[%clk 0:02:26]} 16... Qb6 {[%clk
0:02:44.9]} 17. Qxd7 {[%clk 0:02:25.9]} 17... Rfd8 {[%clk 0:02:29.4]} 18. Qb5
{[%clk 0:02:25.5]} 18... Rd2 {[%clk 0:02:27.7]} 19. b3 {[%clk 0:02:15.7]} 19...
Rad8 {[%clk 0:01:52.1]} 20. Bf3 {[%clk 0:02:02.7]} 20... e5 {[%clk 0:01:32.1]}
21. Kg2 {[%clk 0:01:45.8]} 21... f6 {[%clk 0:01:22.2]} 22. a4 {[%clk 0:01:36.7]}
22... Qc7 {[%clk 0:00:32.3]} 23. a5 {[%clk 0:01:22.9]} 23... Kf7 {[%clk
0:00:16.2]} 24. a6 {[%clk 0:01:15]} 24... Ba8 {[%clk 0:00:16.1]} 25. Qa5 {[%clk
0:01:05.9]} 25... Qd6 {[%clk 0:00:12.4]} 26. Re3 {[%clk 0:00:53.9]} 26... Qd4
{[%clk 0:00:09.1]} 27. Rae1 {[%clk 0:00:41.4]} 27... Qd6 {[%clk 0:00:08.4]} 28.
R1e2 {[%clk 0:00:34.5]} 28... Rxe2 {[%clk 0:00:07.1]} 29. Rxe2 {[%clk
0:00:31.5]} 29... Bc6 {[%clk 0:00:08]} 30. Re1 {[%clk 0:00:26.7]} 30... Qe7
{[%clk 0:00:02.4]} 31. h4 {[%clk 0:00:20.6]} 31... Rd4 {[%clk 0:00:02.4]} 32.
Bh5+ {[%clk 0:00:14.6]} 32... g6 {[%clk 0:00:02.5]} 33. Bf3 {[%clk 0:00:15.5]}
33... f5 {[%clk 0:00:02.7]} 34. exf5 {[%clk 0:00:07.4]} 34... Bxf3+ {[%clk
0:00:03.6]} 35. Kxf3 {[%clk 0:00:07.8]} 35... gxf5 {[%clk 0:00:03.7]} 36. Qb5
{[%clk 0:00:03.6]} 36... e4+ {[%clk 0:00:03.7]} 37. Kg2 {[%clk 0:00:03.5]} 37...
Rd3 {[%clk 0:00:04.1]} 38. Re3 {[%clk 0:00:01.2]} 38... Rd2 {[%clk 0:00:03.8]}
39. Qb7 {[%clk 0:00:01.2]} 39... Ke6 {[%clk 0:00:03]} 40. Qxe7+ {[%clk
0:00:01.2]} 40... Kxe7 {[%clk 0:00:03]} 41. g4 {[%clk 0:00:02.1]} 1-0

[Event "*** Titled Tuesday Blitz"]
[Site "Chess.com"]
[Date "2020.12.29"]
[Round "6"]
[White "esskeettit"]
[Black "olksuna"]
[Result "0-1"]
[WhiteElo "2472"]
[BlackElo "2642"]
[TimeControl "180+1"]
[EndTime "11:06:38 PST"]
[Termination "olksuna won on time"]

1. d4 {[%clk 0:03:00.9]} 1... d5 {[%clk 0:02:58.6]} 2. c4 {[%clk 0:03:00.5]}
2... e6 {[%clk 0:02:59.1]} 3. Nc3 {[%clk 0:02:56.1]} 3... Nf6 {[%clk 0:02:58.6]}
4. cxd5 {[%clk 0:02:56.3]} 4... exd5 {[%clk 0:02:58.9]} 5. Bg5 {[%clk
0:02:56.8]} 5... c6 {[%clk 0:02:58.6]} 6. e3 {[%clk 0:02:56.1]} 6... h6 {[%clk
0:02:58.4]} 7. Bh4 {[%clk 0:02:54.6]} 7... Bf5 {[%clk 0:02:59.1]} 8. Qf3 {[%clk
0:02:51.2]} 8... Be6 {[%clk 0:02:59]} 9. Bxf6 {[%clk 0:02:50.1]} 9... Qxf6
{[%clk 0:02:59.9]} 10. Qxf6 {[%clk 0:02:49.2]} 10... gxf6 {[%clk 0:03:00.8]} 11.
Bd3 {[%clk 0:02:46.1]} 11... a5 {[%clk 0:02:59.7]} 12. Nge2 {[%clk 0:02:44.3]}
12... a4 {[%clk 0:03:00]} 13. a3 {[%clk 0:02:41.8]} 13... Bd6 {[%clk 0:02:55.5]}
14. g3 {[%clk 0:02:39.3]} 14... Nd7 {[%clk 0:02:51.7]} 15. f3 {[%clk 0:02:30]}
15... h5 {[%clk 0:02:45.2]} 16. Kf2 {[%clk 0:02:28.7]} 16... f5 {[%clk
0:02:40.8]} 17. h4 {[%clk 0:02:20.2]} 17... Ke7 {[%clk 0:02:34.6]} 18. Rhg1
{[%clk 0:02:18.2]} 18... Nb6 {[%clk 0:02:29.8]} 19. Nf4 {[%clk 0:01:58.7]} 19...
Kf6 {[%clk 0:02:29.6]} 20. Nce2 {[%clk 0:01:50.8]} 20... Nc8 {[%clk 0:02:22.7]}
21. Rac1 {[%clk 0:01:45.9]} 21... Ra5 {[%clk 0:02:18.2]} 22. Rgf1 {[%clk
0:01:43.5]} 22... Ne7 {[%clk 0:02:12.2]} 23. Kg2 {[%clk 0:01:39.9]} 23... Kg7
{[%clk 0:02:03.9]} 24. Bc2 {[%clk 0:01:15.3]} 24... Ng6 {[%clk 0:01:30.3]} 25.
Kf2 {[%clk 0:01:14]} 25... b6 {[%clk 0:01:19.1]} 26. Nc3 {[%clk 0:00:56.3]}
26... Bxf4 {[%clk 0:01:15.3]} 27. gxf4 {[%clk 0:00:54.2]} 27... Nxh4 {[%clk
0:01:08.7]} 28. Nxa4 {[%clk 0:00:49.7]} 28... c5 {[%clk 0:00:38.2]} 29. dxc5
{[%clk 0:00:39.5]} 29... bxc5 {[%clk 0:00:35.4]} 30. b4 {[%clk 0:00:40]} 30...
cxb4 {[%clk 0:00:34]} 31. axb4 {[%clk 0:00:40.9]} 31... Rb5 {[%clk 0:00:34.6]}
32. Rb1 {[%clk 0:00:27.5]} 32... Rhb8 {[%clk 0:00:34]} 33. Rh1 {[%clk
0:00:19.6]} 33... Ng6 {[%clk 0:00:32.1]} 34. Rxh5 {[%clk 0:00:18.7]} 34... Rxb4
{[%clk 0:00:30.5]} 35. Rxb4 {[%clk 0:00:15]} 35... Rxb4 {[%clk 0:00:31.4]} 36.
Ke2 {[%clk 0:00:13.7]} 36... Rxf4 {[%clk 0:00:28.3]} 37. Nc3 {[%clk 0:00:11.3]}
37... d4 {[%clk 0:00:20.6]} 38. exd4 {[%clk 0:00:08.8]} 38... Rxd4 {[%clk
0:00:17.9]} 39. Ke3 {[%clk 0:00:06.5]} 39... Rc4 {[%clk 0:00:17]} 40. Kd2 {[%clk
0:00:06.7]} 40... Kf6 {[%clk 0:00:14.2]} 41. Rh1 {[%clk 0:00:05.8]} 41... Nf4
{[%clk 0:00:11.9]} 42. Rh6+ {[%clk 0:00:05.1]} 42... Kg5 {[%clk 0:00:11.6]} 43.
Rh1 {[%clk 0:00:05.3]} 43... Rc8 {[%clk 0:00:11.5]} 44. Rg1+ {[%clk 0:00:05.5]}
44... Kf6 {[%clk 0:00:11.5]} 45. Bd1 {[%clk 0:00:03.5]} 45... Rd8+ {[%clk
0:00:10.9]} 46. Ke3 {[%clk 0:00:03.2]} 46... Nh3 {[%clk 0:00:11]} 47. Rg3 {[%clk
0:00:02.2]} 47... f4+ {[%clk 0:00:11.2]} 48. Ke4 {[%clk 0:00:01.3]} 48... fxg3
{[%clk 0:00:11.1]} 0-1